[Event "Late-Titled-Tuesday-Blitz-April-30-2024"]
[Site "Chess.com"]
[Date "2024.04.30"]
[Round "6"]
[White "TheMagician"]
[Black "ploxoi"]
[Result "1-0"]
[WhiteElo "2139"]
[BlackElo "2338"]
[TimeControl "180+1"]
[EndTime "15:07:10 PDT"]
[Termination "TheMagician won by resignation"]

1. d4 {[%clk 0:03:00.9]} 1... d5 {[%clk 0:02:56.1]} 2. c4 {[%clk 0:02:54.5]}
2... e6 {[%clk 0:02:55.9]} 3. e3 {[%clk 0:02:53.7]} 3... c6 {[%clk 0:02:55.3]}
4. Nf3 {[%clk 0:02:53.5]} 4... Nf6 {[%clk 0:02:55.9]} 5. Bd3 {[%clk 0:02:50.5]}
5... Be7 {[%clk 0:02:56.1]} 6. O-O {[%clk 0:02:50]} 6... Nbd7 {[%clk 0:02:56.1]}
7. b3 {[%clk 0:02:49.9]} 7... O-O {[%clk 0:02:55.1]} 8. Bb2 {[%clk 0:02:49.9]}
8... b6 {[%clk 0:02:54.9]} 9. Nbd2 {[%clk 0:02:48.5]} 9... Bb7 {[%clk 0:02:55]}
10. Qe2 {[%clk 0:02:48.5]} 10... Rc8 {[%clk 0:02:55]} 11. e4 {[%clk 0:02:48.8]}
11... h6 {[%clk 0:02:53.8]} 12. e5 {[%clk 0:02:40.3]} 12... Ne8 {[%clk
0:02:53.9]} 13. Rad1 {[%clk 0:02:29.6]} 13... Nc7 {[%clk 0:02:52.1]} 14. Bb1
{[%clk 0:02:29]} 14... c5 {[%clk 0:02:52.1]} 15. Qd3 {[%clk 0:02:19.8]} 15... g6
{[%clk 0:02:51.9]} 16. Qe3 {[%clk 0:02:18.3]} 16... Kg7 {[%clk 0:02:51.3]} 17.
Rfe1 {[%clk 0:02:16]} 17... cxd4 {[%clk 0:02:42.8]} 18. Nxd4 {[%clk 0:02:15.1]}
18... Bc5 {[%clk 0:02:39.5]} 19. N2f3 {[%clk 0:02:07]} 19... dxc4 {[%clk
0:02:35.4]} 20. Bc1 {[%clk 0:02:06.4]} 20... Rh8 {[%clk 0:02:30.1]} 21. bxc4
{[%clk 0:02:00.1]} 21... Qe7 {[%clk 0:02:06.4]} 22. h4 {[%clk 0:01:50.3]} 22...
Bxf3 {[%clk 0:02:03.5]} 23. Qxf3 {[%clk 0:01:44.9]} 23... Qxh4 {[%clk
0:01:39.1]} 24. Nc6 {[%clk 0:01:45]} 24... Nf8 {[%clk 0:01:31]} 25. Nxa7 {[%clk
0:01:35.3]} 25... Ra8 {[%clk 0:01:30.2]} 26. g3 {[%clk 0:01:25.4]} 26... Qh3
{[%clk 0:01:27.4]} 27. Nc6 {[%clk 0:01:09.6]} 27... Nh7 {[%clk 0:01:15.5]} 28.
Re4 {[%clk 0:01:08.1]} 28... Ng5 {[%clk 0:01:14.4]} 29. Bxg5 {[%clk 0:01:04.4]}
29... hxg5 {[%clk 0:01:14]} 30. Qg2 {[%clk 0:01:03.7]} 30... Rh5 {[%clk
0:00:57.1]} 31. Re2 {[%clk 0:00:33.6]} 31... Rah8 {[%clk 0:00:38.9]} 32. Qxh3
{[%clk 0:00:33]} 32... Rxh3 {[%clk 0:00:39.8]} 33. Be4 {[%clk 0:00:33.2]} 33...
Rxg3+ {[%clk 0:00:35.2]} 34. Bg2 {[%clk 0:00:31.8]} 34... Rg4 {[%clk 0:00:30.9]}
35. Rd7 {[%clk 0:00:23.4]} 35... Na6 {[%clk 0:00:22.4]} 36. Nd8 {[%clk
0:00:20.6]} 36... Rf8 {[%clk 0:00:20.5]} 37. Nxe6+ {[%clk 0:00:20.4]} 37... Kg8
{[%clk 0:00:19.5]} 38. Nxf8 {[%clk 0:00:20.6]} 38... Kxf8 {[%clk 0:00:20.4]} 39.
a3 {[%clk 0:00:19]} 39... Rxc4 {[%clk 0:00:20.2]} 40. Ra7 {[%clk 0:00:18.3]}
40... Ra4 {[%clk 0:00:14.4]} 41. Bb7 {[%clk 0:00:15.1]} 41... Rg4+ {[%clk
0:00:10.2]} 42. Kf1 {[%clk 0:00:14.5]} 42... Nb8 {[%clk 0:00:09.2]} 43. Bd5
{[%clk 0:00:14]} 1-0

[Event "Late-Titled-Tuesday-Blitz-April-30-2024"]
[Site "Chess.com"]
[Date "2024.04.30"]
[Round "6"]
[White "PapaieDudu"]
[Black "HipsterChess22"]
[Result "1-0"]
[WhiteElo "2382"]
[BlackElo "2181"]
[TimeControl "180+1"]
[EndTime "15:07:12 PDT"]
[Termination "PapaieDudu won on time"]

1. Nf3 {[%clk 0:02:53.8]} 1... d5 {[%clk 0:02:59.4]} 2. d4 {[%clk 0:02:50.6]}
2... e6 {[%clk 0:02:58.2]} 3. c4 {[%clk 0:02:51.5]} 3... c6 {[%clk 0:02:58.1]}
4. Nc3 {[%clk 0:02:52.4]} 4... dxc4 {[%clk 0:02:57.8]} 5. a4 {[%clk 0:02:52]}
5... Bb4 {[%clk 0:02:56.1]} 6. Bg5 {[%clk 0:02:51.1]} 6... Ne7 {[%clk
0:02:48.3]} 7. e4 {[%clk 0:02:51.4]} 7... b5 {[%clk 0:02:43.1]} 8. Be2 {[%clk
0:02:52]} 8... Bb7 {[%clk 0:02:25.8]} 9. O-O {[%clk 0:02:52.5]} 9... a6 {[%clk
0:02:23.5]} 10. e5 {[%clk 0:02:47.4]} 10... h6 {[%clk 0:02:19.6]} 11. Bh4 {[%clk
0:02:47.4]} 11... Qc8 {[%clk 0:01:58.6]} 12. Na2 {[%clk 0:02:43.6]} 12... Ba5
{[%clk 0:01:50.9]} 13. Bxe7 {[%clk 0:02:39.3]} 13... Kxe7 {[%clk 0:01:48.9]} 14.
b4 {[%clk 0:02:39.8]} 14... Bc7 {[%clk 0:01:34]} 15. Nc3 {[%clk 0:02:39.1]}
15... Rd8 {[%clk 0:01:29.6]} 16. Ne4 {[%clk 0:02:39.4]} 16... Kf8 {[%clk
0:01:24.9]} 17. Nc5 {[%clk 0:02:39.1]} 17... Nd7 {[%clk 0:01:21.4]} 18. Qc2
{[%clk 0:02:25.4]} 18... Nxc5 {[%clk 0:01:15.6]} 19. bxc5 {[%clk 0:02:25.2]}
19... Kg8 {[%clk 0:01:14]} 20. Qe4 {[%clk 0:02:09.6]} 20... Rb8 {[%clk
0:01:07.2]} 21. Bd1 {[%clk 0:02:09.5]} 21... Qd7 {[%clk 0:00:55.9]} 22. Bc2
{[%clk 0:02:08.8]} 22... g6 {[%clk 0:00:55.1]} 23. Qf4 {[%clk 0:02:01.7]} 23...
Qe7 {[%clk 0:00:40.2]} 24. Qxh6 {[%clk 0:02:00.7]} 24... Qf8 {[%clk 0:00:40.3]}
25. Qg5 {[%clk 0:01:54.2]} 25... Rd7 {[%clk 0:00:36.6]} 26. Rfd1 {[%clk
0:01:47.1]} 26... Bd8 {[%clk 0:00:36]} 27. Qf4 {[%clk 0:01:44.5]} 27... Be7
{[%clk 0:00:35.5]} 28. Nd2 {[%clk 0:01:42.5]} 28... Rbd8 {[%clk 0:00:33.9]} 29.
Ne4 {[%clk 0:01:39.1]} 29... b4 {[%clk 0:00:31.7]} 30. Qe3 {[%clk 0:01:17.4]}
30... b3 {[%clk 0:00:30.2]} 31. Bb1 {[%clk 0:01:15]} 31... a5 {[%clk 0:00:29.9]}
32. Qc3 {[%clk 0:00:39.4]} 32... Qg7 {[%clk 0:00:19.9]} 33. f4 {[%clk 0:00:27]}
33... f5 {[%clk 0:00:16.3]} 34. Nd6 {[%clk 0:00:20.2]} 34... Bxd6 {[%clk
0:00:14.4]} 35. cxd6 {[%clk 0:00:19.9]} 35... c5 {[%clk 0:00:13.9]} 36. dxc5
{[%clk 0:00:18.8]} 36... Bd5 {[%clk 0:00:12.5]} 37. c6 {[%clk 0:00:17.7]} 37...
Bxc6 {[%clk 0:00:10.6]} 38. Qxc4 {[%clk 0:00:18.1]} 38... Bd5 {[%clk 0:00:10.1]}
39. Rxd5 {[%clk 0:00:17.7]} 39... exd5 {[%clk 0:00:08.4]} 40. Qxd5+ {[%clk
0:00:18.3]} 40... Kh7 {[%clk 0:00:08.4]} 41. Ra3 {[%clk 0:00:16.5]} 41... Rxd6
{[%clk 0:00:01.5]} 42. exd6 {[%clk 0:00:15.2]} 42... Qb2 {[%clk 0:00:01.2]} 43.
Rxb3 {[%clk 0:00:14.5]} 1-0

[Event "Late-Titled-Tuesday-Blitz-April-30-2024"]
[Site "Chess.com"]
[Date "2024.04.30"]
[Round "6"]
[White "Romkachess"]
[Black "H3nriqueTV"]
[Result "1-0"]
[WhiteElo "2634"]
[BlackElo "2422"]
[TimeControl "180+1"]
[EndTime "15:07:13 PDT"]
[Termination "Romkachess won by resignation"]

1. e4 {[%clk 0:02:55.9]} 1... c5 {[%clk 0:02:58.5]} 2. Nf3 {[%clk 0:02:55.1]}
2... b6 {[%clk 0:02:58.5]} 3. d4 {[%clk 0:02:46.5]} 3... cxd4 {[%clk 0:02:59.4]}
4. Nxd4 {[%clk 0:02:45.9]} 4... Bb7 {[%clk 0:03:00]} 5. Nc3 {[%clk 0:02:45.8]}
5... a6 {[%clk 0:03:00.4]} 6. Bc4 {[%clk 0:02:42.3]} 6... e6 {[%clk 0:03:00.6]}
7. O-O {[%clk 0:02:41.2]} 7... Qc7 {[%clk 0:03:01]} 8. Bb3 {[%clk 0:02:40.2]}
8... Nf6 {[%clk 0:03:01.5]} 9. Qe2 {[%clk 0:02:37.8]} 9... Bb4 {[%clk
0:02:48.9]} 10. e5 {[%clk 0:02:25.1]} 10... Bxc3 {[%clk 0:02:44.5]} 11. bxc3
{[%clk 0:02:16.6]} 11... Nd5 {[%clk 0:02:44.5]} 12. c4 {[%clk 0:02:12.2]} 12...
Ne7 {[%clk 0:02:44.6]} 13. Ba3 {[%clk 0:02:07.7]} 13... Nbc6 {[%clk 0:02:30.7]}
14. Nf3 {[%clk 0:02:04.6]} 14... O-O {[%clk 0:02:26.2]} 15. Bd6 {[%clk
0:02:01.1]} 15... Qc8 {[%clk 0:02:25.7]} 16. h4 {[%clk 0:01:58]} 16... Re8
{[%clk 0:02:25.6]} 17. Ng5 {[%clk 0:01:43.2]} 17... h6 {[%clk 0:02:20]} 18. Ne4
{[%clk 0:01:40]} 18... Nd4 {[%clk 0:02:05]} 19. Nf6+ {[%clk 0:01:32]} 19... gxf6
{[%clk 0:01:11.4]} 20. Qg4+ {[%clk 0:01:31.4]} 20... Kh8 {[%clk 0:01:11.3]} 21.
Qxd4 {[%clk 0:01:18]} 21... Nf5 {[%clk 0:01:11.4]} 22. Qf4 {[%clk 0:01:13.5]}
22... Rg8 {[%clk 0:01:05.4]} 23. f3 {[%clk 0:01:09.4]} 23... Kh7 {[%clk
0:00:25.6]} 24. c3 {[%clk 0:00:59.3]} 24... Rg6 {[%clk 0:00:24.5]} 25. Bc2
{[%clk 0:00:57.1]} 25... fxe5 {[%clk 0:00:18]} 26. Bxe5 {[%clk 0:00:51.5]} 26...
Qg8 {[%clk 0:00:18]} 27. Rf2 {[%clk 0:00:41.2]} 27... d6 {[%clk 0:00:17]} 28.
Bxd6 {[%clk 0:00:34.3]} 28... f6 {[%clk 0:00:15.8]} 29. Bxf5 {[%clk 0:00:32.6]}
29... exf5 {[%clk 0:00:16.2]} 30. Re1 {[%clk 0:00:32]} 30... Re8 {[%clk
0:00:12.4]} 31. Rxe8 {[%clk 0:00:26]} 31... Qxe8 {[%clk 0:00:13.3]} 32. Kh2
{[%clk 0:00:25.9]} 32... Qe1 {[%clk 0:00:12]} 33. Qd4 {[%clk 0:00:17.3]} 33...
Bxf3 {[%clk 0:00:12.1]} 34. Rxf3 {[%clk 0:00:14.7]} 34... Rg4 {[%clk 0:00:09.5]}
35. Qxb6 {[%clk 0:00:04.6]} 35... Qxh4+ {[%clk 0:00:06.7]} 36. Rh3 {[%clk
0:00:04.8]} 36... Qg5 {[%clk 0:00:05.7]} 37. Qc7+ {[%clk 0:00:05]} 37... Kg6
{[%clk 0:00:06.1]} 38. Rg3 {[%clk 0:00:04.7]} 38... Rxg3 {[%clk 0:00:06.4]} 39.
Bxg3 {[%clk 0:00:04.7]} 39... Qh5+ {[%clk 0:00:06.9]} 40. Kg1 {[%clk 0:00:04.9]}
40... Qd1+ {[%clk 0:00:07.6]} 41. Kf2 {[%clk 0:00:05.4]} 41... Qd2+ {[%clk
0:00:08]} 42. Kf1 {[%clk 0:00:05.7]} 42... Qd1+ {[%clk 0:00:08.2]} 43. Be1
{[%clk 0:00:06.1]} 43... Qd3+ {[%clk 0:00:08.3]} 44. Kg1 {[%clk 0:00:06.7]}
44... Qe3+ {[%clk 0:00:08.6]} 45. Bf2 {[%clk 0:00:07.2]} 45... Qc1+ {[%clk
0:00:09.1]} 46. Kh2 {[%clk 0:00:07.7]} 46... Qxc3 {[%clk 0:00:09.5]} 47. Qg3+
{[%clk 0:00:07.9]} 47... Qxg3+ {[%clk 0:00:10.2]} 48. Kxg3 {[%clk 0:00:08.8]}
48... Kg5 {[%clk 0:00:10.7]} 49. Be3+ {[%clk 0:00:09.1]} 49... Kg6 {[%clk
0:00:11.5]} 50. c5 {[%clk 0:00:09.4]} 1-0

[Event "Late-Titled-Tuesday-Blitz-April-30-2024"]
[Site "Chess.com"]
[Date "2024.04.30"]
[Round "6"]
[White "kleinebeer98"]
[Black "IMRosen"]
[Result "1-0"]
[WhiteElo "2918"]
[BlackElo "2685"]
[TimeControl "180+1"]
[EndTime "15:07:14 PDT"]
[Termination "kleinebeer98 won by checkmate"]

1. e4 {[%clk 0:03:00.9]} 1... c5 {[%clk 0:02:58.4]} 2. Nf3 {[%clk 0:03:00.9]}
2... Nc6 {[%clk 0:02:56.4]} 3. Bc4 {[%clk 0:02:57.1]} 3... g6 {[%clk 0:02:50]}
4. d4 {[%clk 0:02:55.4]} 4... cxd4 {[%clk 0:02:49.4]} 5. Nxd4 {[%clk 0:02:56.3]}
5... Bg7 {[%clk 0:02:45.9]} 6. Nf3 {[%clk 0:02:56.7]} 6... Nf6 {[%clk
0:02:42.1]} 7. Nc3 {[%clk 0:02:56.6]} 7... O-O {[%clk 0:02:39.6]} 8. O-O {[%clk
0:02:56.1]} 8... d6 {[%clk 0:02:33.9]} 9. h3 {[%clk 0:02:55]} 9... Na5 {[%clk
0:02:28.5]} 10. Bb3 {[%clk 0:02:50.3]} 10... b6 {[%clk 0:02:26.7]} 11. Bg5
{[%clk 0:02:48.7]} 11... Ba6 {[%clk 0:02:22.4]} 12. Re1 {[%clk 0:02:47.6]} 12...
Rc8 {[%clk 0:02:23.1]} 13. e5 {[%clk 0:02:42.6]} 13... dxe5 {[%clk 0:02:11]} 14.
Nxe5 {[%clk 0:02:43.5]} 14... Qxd1 {[%clk 0:01:47.4]} 15. Raxd1 {[%clk
0:02:39.9]} 15... Bb7 {[%clk 0:01:26.9]} 16. Bxf6 {[%clk 0:02:00.1]} 16... exf6
{[%clk 0:01:23.3]} 17. Nd7 {[%clk 0:01:35.7]} 17... Rfd8 {[%clk 0:01:20.9]} 18.
Re7 {[%clk 0:01:36]} 18... Nxb3 {[%clk 0:01:02]} 19. axb3 {[%clk 0:01:36.9]}
19... Bc6 {[%clk 0:00:59.5]} 20. Rd6 {[%clk 0:01:32.9]} 20... f5 {[%clk
0:00:19.6]} 21. Nf6+ {[%clk 0:01:18.4]} 21... Kf8 {[%clk 0:00:16.4]} 22. Rxd8+
{[%clk 0:00:54]} 22... Rxd8 {[%clk 0:00:16.1]} 23. Rc7 {[%clk 0:00:54.9]} 23...
Bxg2 {[%clk 0:00:04.7]} 24. Nxh7+ {[%clk 0:00:51]} 24... Kg8 {[%clk 0:00:05.2]}
25. Kxg2 {[%clk 0:00:51.5]} 25... Kxh7 {[%clk 0:00:05.2]} 26. Rxf7 {[%clk
0:00:52.1]} 26... Kg8 {[%clk 0:00:03.7]} 27. Rxa7 {[%clk 0:00:52.4]} 27... Bxc3
{[%clk 0:00:04.4]} 28. bxc3 {[%clk 0:00:52.7]} 28... Rd2 {[%clk 0:00:05.1]} 29.
Rb7 {[%clk 0:00:45.6]} 29... Rxc2 {[%clk 0:00:05.5]} 30. Rxb6 {[%clk 0:00:46.3]}
30... Rxc3 {[%clk 0:00:05.8]} 31. Rxg6+ {[%clk 0:00:46.6]} 31... Kf7 {[%clk
0:00:06.5]} 32. Rb6 {[%clk 0:00:45.9]} 32... Kg7 {[%clk 0:00:06.7]} 33. b4
{[%clk 0:00:44.1]} 33... Rb3 {[%clk 0:00:07]} 34. h4 {[%clk 0:00:40.8]} 34...
Kf7 {[%clk 0:00:05.1]} 35. b5 {[%clk 0:00:34.2]} 35... Kg7 {[%clk 0:00:04.7]}
36. Rb8 {[%clk 0:00:31.4]} 36... Kg6 {[%clk 0:00:03.9]} 37. b6 {[%clk
0:00:31.5]} 37... Kg7 {[%clk 0:00:01.9]} 38. b7 {[%clk 0:00:31.8]} 38... Kh7
{[%clk 0:00:01.6]} 39. h5 {[%clk 0:00:32.1]} 39... Kg7 {[%clk 0:00:01.8]} 40.
h6+ {[%clk 0:00:32.3]} 40... Kh7 {[%clk 0:00:02.4]} 41. Kf1 {[%clk 0:00:32.6]}
41... f4 {[%clk 0:00:02]} 42. Ke2 {[%clk 0:00:33.2]} 42... f3+ {[%clk
0:00:02.1]} 43. Kd2 {[%clk 0:00:33.9]} 43... Rb6 {[%clk 0:00:01.8]} 44. Ke3
{[%clk 0:00:34.1]} 44... Rb3+ {[%clk 0:00:02.3]} 45. Kf4 {[%clk 0:00:34.9]}
45... Rb6 {[%clk 0:00:01.6]} 46. Kxf3 {[%clk 0:00:35.2]} 46... Rf6+ {[%clk
0:00:01.5]} 47. Kg4 {[%clk 0:00:34.3]} 47... Rg6+ {[%clk 0:00:01.5]} 48. Kf3
{[%clk 0:00:33.3]} 48... Rb6 {[%clk 0:00:02.4]} 49. Kg2 {[%clk 0:00:33.6]} 49...
Rg6+ {[%clk 0:00:02.8]} 50. Kf1 {[%clk 0:00:34.2]} 50... Rb6 {[%clk 0:00:02.8]}
51. f4 {[%clk 0:00:34]} 51... Rb4 {[%clk 0:00:02.4]} 52. f5 {[%clk 0:00:33.9]}
52... Rb5 {[%clk 0:00:02.5]} 53. f6 {[%clk 0:00:33.7]} 53... Rb6 {[%clk
0:00:03]} 54. Ke2 {[%clk 0:00:32.4]} 54... Rxf6 {[%clk 0:00:01.6]} 55. Rc8
{[%clk 0:00:30.1]} 55... Kxh6 {[%clk 0:00:01.2]} 56. b8=Q {[%clk 0:00:30.6]}
56... Rg6 {[%clk 0:00:01.1]} 57. Qf4+ {[%clk 0:00:30.8]} 57... Kg7 {[%clk
0:00:01.4]} 58. Qf8+ {[%clk 0:00:30.6]} 58... Kh7 {[%clk 0:00:01.5]} 59. Qh8#
{[%clk 0:00:31.5]} 1-0

[Event "Late-Titled-Tuesday-Blitz-April-30-2024"]
[Site "Chess.com"]
[Date "2024.04.30"]
[Round "6"]
[White "Evan_Attaker"]
[Black "JiangoFett"]
[Result "0-1"]
[WhiteElo "2623"]
[BlackElo "2481"]
[TimeControl "180+1"]
[EndTime "15:07:18 PDT"]
[Termination "JiangoFett won by checkmate"]

1. Nf3 {[%clk 0:03:00.3]} 1... Nf6 {[%clk 0:02:58.4]} 2. c4 {[%clk 0:03:00.2]}
2... b6 {[%clk 0:02:57.6]} 3. g3 {[%clk 0:03:00]} 3... Bb7 {[%clk 0:02:58.1]} 4.
Bg2 {[%clk 0:03:00.7]} 4... g6 {[%clk 0:02:58.7]} 5. O-O {[%clk 0:03:01]} 5...
Bg7 {[%clk 0:02:59]} 6. b3 {[%clk 0:02:59.5]} 6... O-O {[%clk 0:02:54.4]} 7. Bb2
{[%clk 0:02:59.6]} 7... d6 {[%clk 0:02:55]} 8. d4 {[%clk 0:02:59.3]} 8... Nbd7
{[%clk 0:02:52]} 9. Nc3 {[%clk 0:02:59.5]} 9... Ne4 {[%clk 0:02:44.8]} 10. Qc2
{[%clk 0:02:58.2]} 10... Nxc3 {[%clk 0:02:44.7]} 11. Bxc3 {[%clk 0:02:59.1]}
11... Nf6 {[%clk 0:02:40.8]} 12. Rad1 {[%clk 0:02:52.8]} 12... Be4 {[%clk
0:02:34.5]} 13. Qb2 {[%clk 0:02:52.7]} 13... Qc8 {[%clk 0:02:33.2]} 14. d5
{[%clk 0:02:51.3]} 14... e5 {[%clk 0:02:24.5]} 15. b4 {[%clk 0:02:26.6]} 15...
Nd7 {[%clk 0:02:13.2]} 16. Bh3 {[%clk 0:02:20.8]} 16... Qd8 {[%clk 0:01:44.6]}
17. Nd2 {[%clk 0:00:35.9]} 17... Bf5 {[%clk 0:01:43]} 18. Bg2 {[%clk 0:00:12.9]}
18... g5 {[%clk 0:01:27.4]} 19. Nb3 {[%clk 0:00:12.4]} 19... Re8 {[%clk
0:01:17.3]} 20. c5 {[%clk 0:00:11.6]} 20... bxc5 {[%clk 0:01:13.2]} 21. bxc5
{[%clk 0:00:12.5]} 21... Rb8 {[%clk 0:01:13.4]} 22. Qa3 {[%clk 0:00:12]} 22...
Bc2 {[%clk 0:01:05.3]} 23. c6 {[%clk 0:00:05]} 23... Nb6 {[%clk 0:00:59.1]} 24.
Rc1 {[%clk 0:00:05.4]} 24... Bg6 {[%clk 0:00:51.8]} 25. Na5 {[%clk 0:00:05.6]}
25... e4 {[%clk 0:00:46.4]} 26. Bxg7 {[%clk 0:00:05.2]} 26... Kxg7 {[%clk
0:00:46.3]} 27. Nb7 {[%clk 0:00:06.1]} 27... Qf6 {[%clk 0:00:45.6]} 28. Qc3
{[%clk 0:00:05.4]} 28... Nxd5 {[%clk 0:00:42.1]} 29. Qxf6+ {[%clk 0:00:05.1]}
29... Kxf6 {[%clk 0:00:41.4]} 30. f3 {[%clk 0:00:05.3]} 30... Ne3 {[%clk
0:00:40]} 31. Rf2 {[%clk 0:00:04.2]} 31... Nxg2 {[%clk 0:00:35.4]} 32. Kxg2
{[%clk 0:00:05.1]} 32... e3 {[%clk 0:00:35.7]} 33. Rff1 {[%clk 0:00:05.4]} 33...
Re5 {[%clk 0:00:35]} 34. Rc3 {[%clk 0:00:05.4]} 34... d5 {[%clk 0:00:30.1]} 35.
Ra3 {[%clk 0:00:05.4]} 35... d4 {[%clk 0:00:24.2]} 36. Rxa7 {[%clk 0:00:05.1]}
36... Rb5 {[%clk 0:00:21.5]} 37. Rd1 {[%clk 0:00:04.7]} 37... Rb2 {[%clk
0:00:21.4]} 38. Rxd4 {[%clk 0:00:05.3]} 38... Rxe2+ {[%clk 0:00:22]} 39. Kh3
{[%clk 0:00:06]} 39... Rf2 {[%clk 0:00:16.2]} 40. Ra3 {[%clk 0:00:03.5]} 40...
Rxf3 {[%clk 0:00:12.9]} 41. Nc5 {[%clk 0:00:03.4]} 41... Re8 {[%clk 0:00:11.5]}
42. Nd7+ {[%clk 0:00:02.9]} 42... Kg7 {[%clk 0:00:10.5]} 43. Kg4 {[%clk
0:00:03.5]} 43... Rf2 {[%clk 0:00:08.8]} 44. Rdd3 {[%clk 0:00:03.4]} 44... h5+
{[%clk 0:00:09.1]} 45. Kxg5 {[%clk 0:00:03.5]} 45... f6+ {[%clk 0:00:08.7]} 46.
Kh4 {[%clk 0:00:03.7]} 46... Re4+ {[%clk 0:00:09]} 47. g4 {[%clk 0:00:03.9]}
47... Rxg4+ {[%clk 0:00:08.8]} 48. Kh3 {[%clk 0:00:04.7]} 48... Rf3# {[%clk
0:00:09.4]} 0-1

[Event "Late-Titled-Tuesday-Blitz-April-30-2024"]
[Site "Chess.com"]
[Date "2024.04.30"]
[Round "6"]
[White "Sesleria"]
[Black "Navyblue1"]
[Result "0-1"]
[WhiteElo "2121"]
[BlackElo "2236"]
[TimeControl "180+1"]
[EndTime "15:07:18 PDT"]
[Termination "Navyblue1 won by resignation"]

1. c4 {[%clk 0:02:55.2]} 1... e5 {[%clk 0:02:56.4]} 2. g3 {[%clk 0:02:54.3]}
2... Nf6 {[%clk 0:02:55.2]} 3. Bg2 {[%clk 0:02:54.4]} 3... d5 {[%clk 0:02:52.7]}
4. cxd5 {[%clk 0:02:54]} 4... Nxd5 {[%clk 0:02:53.2]} 5. Nc3 {[%clk 0:02:53.6]}
5... Nb6 {[%clk 0:02:52.9]} 6. Nf3 {[%clk 0:02:47.1]} 6... Nc6 {[%clk
0:02:52.8]} 7. O-O {[%clk 0:02:42.9]} 7... Be7 {[%clk 0:02:53.3]} 8. d3 {[%clk
0:02:35.4]} 8... O-O {[%clk 0:02:53.3]} 9. Be3 {[%clk 0:02:31.9]} 9... Re8
{[%clk 0:02:43.2]} 10. Rc1 {[%clk 0:02:31.1]} 10... Be6 {[%clk 0:02:35.5]} 11.
Nd2 {[%clk 0:02:11.9]} 11... Rb8 {[%clk 0:02:24.8]} 12. Nb3 {[%clk 0:02:01.2]}
12... Nd5 {[%clk 0:02:18.2]} 13. Nxd5 {[%clk 0:01:58.6]} 13... Bxd5 {[%clk
0:02:17.2]} 14. Qc2 {[%clk 0:01:40]} 14... Bxg2 {[%clk 0:02:12.4]} 15. Kxg2
{[%clk 0:01:40.9]} 15... Bg5 {[%clk 0:02:00.9]} 16. Bxg5 {[%clk 0:01:27.1]}
16... Qxg5 {[%clk 0:02:01.8]} 17. Nc5 {[%clk 0:01:13.3]} 17... Nd4 {[%clk
0:01:52.4]} 18. Qa4 {[%clk 0:01:08.9]} 18... Qe7 {[%clk 0:01:44.7]} 19. e3
{[%clk 0:01:05.4]} 19... Nf5 {[%clk 0:01:35.2]} 20. Rfd1 {[%clk 0:00:53.4]}
20... Nd6 {[%clk 0:01:28.6]} 21. Ne4 {[%clk 0:00:45.3]} 21... Nxe4 {[%clk
0:01:24.4]} 22. dxe4 {[%clk 0:00:45.7]} 22... c6 {[%clk 0:01:19]} 23. a3 {[%clk
0:00:43.9]} 23... a6 {[%clk 0:01:12.7]} 24. Qa5 {[%clk 0:00:31.8]} 24... Red8
{[%clk 0:01:10.7]} 25. Qb6 {[%clk 0:00:29.3]} 25... h6 {[%clk 0:00:52.4]} 26. h3
{[%clk 0:00:18.1]} 26... h5 {[%clk 0:00:50.2]} 27. b4 {[%clk 0:00:14.9]} 27...
Qf6 {[%clk 0:00:34.1]} 28. Qc5 {[%clk 0:00:14.2]} 28... Qe6 {[%clk 0:00:25.8]}
29. Qb6 {[%clk 0:00:09.6]} 29... Qf6 {[%clk 0:00:25.2]} 30. Qc7 {[%clk
0:00:08.7]} 30... h4 {[%clk 0:00:18]} 31. Rd7 {[%clk 0:00:07.7]} 31... Rxd7
{[%clk 0:00:16.9]} 32. Qxd7 {[%clk 0:00:08.2]} 32... Qe6 {[%clk 0:00:15.5]} 33.
Qxe6 {[%clk 0:00:08.3]} 33... fxe6 {[%clk 0:00:15.3]} 34. Rd1 {[%clk 0:00:09.2]}
34... hxg3 {[%clk 0:00:14.8]} 35. Kxg3 {[%clk 0:00:09.9]} 35... Rc8 {[%clk
0:00:14.1]} 36. Rd7 {[%clk 0:00:09.8]} 36... c5 {[%clk 0:00:14.5]} 37. bxc5
{[%clk 0:00:09.1]} 37... Rxc5 {[%clk 0:00:14.6]} 38. Rxb7 {[%clk 0:00:09.8]}
38... Rc3 {[%clk 0:00:14.8]} 39. Rb6 {[%clk 0:00:09.7]} 39... Rxa3 {[%clk
0:00:14.9]} 40. Rxe6 {[%clk 0:00:10.4]} 40... Ra5 {[%clk 0:00:14.9]} 41. Kg4
{[%clk 0:00:10.1]} 41... Kf7 {[%clk 0:00:15.4]} 42. Rb6 {[%clk 0:00:09.4]} 42...
Ra4 {[%clk 0:00:12.9]} 43. Kf5 {[%clk 0:00:09.5]} 43... Ra2 {[%clk 0:00:13.5]}
44. Rb7+ {[%clk 0:00:09.5]} 44... Kf8 {[%clk 0:00:13.1]} 45. f4 {[%clk
0:00:09.9]} 45... exf4 {[%clk 0:00:12.9]} 46. exf4 {[%clk 0:00:10.8]} 46... a5
{[%clk 0:00:13.2]} 47. e5 {[%clk 0:00:10.8]} 47... Rf2 {[%clk 0:00:11.9]} 48.
Ra7 {[%clk 0:00:10.4]} 48... Rf3 {[%clk 0:00:10.8]} 49. h4 {[%clk 0:00:10.8]}
49... Rh3 {[%clk 0:00:10.5]} 50. e6 {[%clk 0:00:09.7]} 50... Rxh4 {[%clk
0:00:09.9]} 51. Rxa5 {[%clk 0:00:09.9]} 51... Rh5+ {[%clk 0:00:10.1]} 52. Kg6
{[%clk 0:00:09.9]} 52... Rxa5 {[%clk 0:00:10.9]} 53. f5 {[%clk 0:00:10.7]} 53...
Ra7 {[%clk 0:00:10.4]} 0-1